{"text_format":"3","workbook":"xlsx","n_sheets":2,"sheets":["START","ÅRLIG TIMELISTE"],"not_rendered":{"defined_names":2},"read":"whole","date_system":"1900"}

{"sheet":"START","index":0,"n_rows":8,"n_cols":2,"rows_kept":8}
[null,"OM DENNE MALEN"]
[null,"Spore timene daglig, ukentlig, månedlig og årlig i tidskort for ansatt."]
[null,"Fyll inn grunnleggende informasjon som navn på ansatt, navn, e-postadresse og telefonnummer. "]
[null,"Legg til timene i hver månedstabell. Logg vanlige timer og overtidstimer i separate kolonner for hver ukedag i hver uke. "]
[null,"Totalt antall timer, vanlige timer og overtidstimer beregnes automatisk. "]
[null,"Notater:"]
[null,"Flere instruksjoner finnes i kolonne A i ÅRLIG TIMELIST. Denne teksten har blitt skjult med vilje. Hvis du vil fjerne teksten, velger du kolonne A og deretter SLETT. Hvis du vil vise teksten, velger du kolonne A og endrer deretter skriftfarge. "]
[null,"Hvis du vil finne ut mer om tabeller, trykker du på SKIFT og deretter på F10 i en TABELL. Velg alternativet for tabell, og velg deretter ALTERNATIV TEKST."]

{"sheet":"ÅRLIG TIMELISTE","index":1,"n_rows":132,"n_cols":15,"rows_kept":132,"merged":[[0,1,0,2],[0,4,0,14],[10,6,10,7],[21,6,21,7],[32,6,32,7],[33,4,33,14],[43,6,43,7],[54,6,54,7],[65,6,65,7],[66,4,66,14],[76,6,76,7],[87,6,87,7],[98,6,98,7],[99,4,99,14],[109,6,109,7],[120,6,120,7],[131,6,131,7]]}
["Opprette en daglig, ukentlig, månedlig eller årlig timeliste for ansatte i dette regnearket. \nDu finner nyttige instruksjoner om hvordan du bruker dette regnearket i cellene i denne kolonnen. Trykk på PIL NED for å komme i gang.\nTittelen på dette regnearket er i cellen til høyre, og kvartalsoverskriften for januar, februar og mars er i celle E1.","TIDSKORT FOR ANSATT",null,null,"Januar, februar, mars      Tidskort for ansatt: Daglig, ukentlig, månedlig, årlig"]
["Skriv inn navn på ansatt i celle C2 og vanlige timer og overtidstimer i januar tabell fra celle E2.","Den ansattes navn:",null,null,"Januar","Uke 1","Overtid","Uke 2","Overtid  ","Uke 3","Overtid   ","Uke 4","Overtid    ","Uke 5","Overtid     "]
["Skriv inn lederens navn i celle C3","Leder:",null,null,"Mandag",{"v":8,"d":"8.0"}]
["Skriv inn e-postadresse i celle C4.","E-post:",null,null,"Tirsdag",{"v":8,"d":"8.0"},{"v":2,"d":"2.0"}]
["Skriv inn telefonnummer i celle C5. Neste instruksjon er i celle A9.","Telefon:",null,null,"Onsdag"]
[{"$nulls":4},"Torsdag"]
[{"$nulls":4},"Fredag"]
[{"$nulls":4},"Lørdag"]
["Årlig total for vanlige timer beregnes automatisk i celle C9.","Vanlige timer:",{"$f":"VanligeTimer","v":31},null,"Søndag"]
["Årlig total for overtid beregnes automatisk i celle C10.","Overtidstimer:",{"$f":"Overtidstimer","v":4},null,"Totale ukentlige timer",{"$f":"SUM(F3:F9)","v":{"v":16,"d":"16.0"}},{"v":2,"d":"2.0"},{"v":0,"d":"0.0"},{"v":0,"d":"0.0"},{"v":0,"d":"0.0"},{"v":0,"d":"0.0"},{"v":0,"d":"0.0"},{"v":0,"d":"0.0"},{"v":0,"d":"0.0"},{"v":0,"d":"0.0"}]
["Årlig total for antall timer beregnes automatisk i celle C11. Total for vanlige timer i celle F11 og total for overtidstimer for januar i celle I11 beregnes automatisk. Neste instruksjon er i celle A13.","Totalsum",{"$f":"VanligeTimer+Overtidstimer","v":35},null,{"$f":"TEXT(DATEVALUE(Januar[[#Headers],[Januar]]&\"  \"&YEAR(TODAY())),\"mmm.\")&\" totalsum: Vanlige timer\"","v":"jan. totalsum: Vanlige timer"},{"$f":"SUM(Januar[Uke 1],Januar[Uke 2],Januar[Uke 3],Januar[Uke 4],Januar[Uke 5])","v":{"v":16,"d":"16.0"}},{"$f":"TEXT(DATEVALUE(Januar[[#Headers],[Januar]]&\"  \"&YEAR(TODAY())),\"mmm.\")&\" totalsum: Overtid\"","v":"jan. totalsum: Overtid"},null,{"$f":"SUM(Januar[Overtid],Januar[[Overtid  ]],Januar[[Overtid   ]],Januar[[Overtid    ]],Januar[[Overtid     ]])","v":{"v":2,"d":"2.0"}}]
[]
["Skriv inn vanlige timer og overtidstimer i februar i tabellen fra celle E13. Neste instruksjon er i celle A22.",{"$nulls":3},"Februar","Uke 1","Overtid","Uke 2","Overtid  ","Uke 3","Overtid   ","Uke 4","Overtid    ","Uke 5","Overtid     "]
[{"$nulls":4},"Mandag",{"v":8,"d":"8.0"}]
[{"$nulls":4},"Tirsdag",{"v":7,"d":"7.0"},{"v":2,"d":"2.0"}]
[{"$nulls":4},"Onsdag"]
[{"$nulls":4},"Torsdag"]
[{"$nulls":4},"Fredag"]
[{"$nulls":4},"Lørdag"]
[{"$nulls":4},"Søndag"]
[{"$nulls":4},"Totale ukentlige timer",{"$f":"SUM(F14:F20)","v":{"v":15,"d":"15.0"}},{"v":2,"d":"2.0"},{"v":0,"d":"0.0"},{"v":0,"d":"0.0"},{"v":0,"d":"0.0"},{"v":0,"d":"0.0"},{"v":0,"d":"0.0"},{"v":0,"d":"0.0"},{"v":0,"d":"0.0"},{"v":0,"d":"0.0"}]
["Total for vanlige timer i celle F22 og total for overtidstimer for februar i celle I22 beregnes automatisk. Neste instruksjon er i celle A24.",{"$nulls":3},{"$f":"TEXT(DATEVALUE(Februar[[#Headers],[Februar]]&\"  \"&YEAR(TODAY())),\"mmm.\")&\" totalsum: Vanlige timer\"","v":"feb. totalsum: Vanlige timer"},{"$f":"SUM(Februar[Uke 1],Februar[Uke 2],Februar[Uke 3],Februar[Uke 4],Februar[Uke 5])","v":{"v":15,"d":"15.0"}},{"$f":"TEXT(DATEVALUE(Februar[[#Headers],[Februar]]&\" \"&YEAR(TODAY())),\"mmm.\")&\" totalsum: Overtid\"","v":"feb. totalsum: Overtid"},null,{"$f":"SUM(Februar[Overtid],Februar[[Overtid  ]],Februar[[Overtid   ]],Februar[[Overtid    ]],Februar[[Overtid     ]])","v":{"v":2,"d":"2.0"}}]
[]
["Skriv inn vanlige timer og overtidstimer i mars i en tabell fra celle E24. Neste instruksjon er i celle A33.",{"$nulls":3},"Mars","Uke 1","Overtid","Uke 2","Overtid ","Uke 3","Overtid  ","Uke 4","Overtid    ","Uke 5","Overtid     "]
[{"$nulls":4},"Mandag"]
[{"$nulls":4},"Tirsdag"]
[{"$nulls":4},"Onsdag"]
[{"$nulls":4},"Torsdag"]
[{"$nulls":4},"Fredag"]
[{"$nulls":4},"Lørdag"]
[{"$nulls":4},"Søndag"]
[{"$nulls":4},"Totale ukentlige timer",{"$f":"SUM(F25:F31)","v":{"v":0,"d":"0.0"}},{"v":0,"d":"0.0"},{"v":0,"d":"0.0"},{"v":0,"d":"0.0"},{"v":0,"d":"0.0"},{"v":0,"d":"0.0"},{"v":0,"d":"0.0"},{"v":0,"d":"0.0"},{"v":0,"d":"0.0"},{"v":0,"d":"0.0"}]
["Total for vanlige timer i celle F33 og total for overtidstimer for mars i celle I33 beregnes automatisk.",{"$nulls":3},{"$f":"TEXT(DATEVALUE(Mars[[#Headers],[Mars]]&\" \"&YEAR(TODAY())),\"mmm.\")&\" totalsum: Vanlige timer\"","v":"mar. totalsum: Vanlige timer"},{"$f":"SUM(Mars[Uke 1],Mars[Uke 2],Mars[Uke 3],Mars[Uke 4],Mars[Uke 5])","v":{"v":0,"d":"0.0"}},{"$f":"TEXT(DATEVALUE(Mars[[#Headers],[Mars]]&\" \"&YEAR(TODAY())),\"mmm.\")&\" totalsum: Overtid\"","v":"mar. totalsum: Overtid"},null,{"$f":"SUM(Mars[Overtid],Mars[[Overtid ]],Mars[[Overtid  ]],Mars[[Overtid    ]],Mars[[Overtid     ]])","v":{"v":0,"d":"0.0"}}]
["Overskriften for andre kvartal, april, mai og juni er i celle E34. ",{"$nulls":3},"April, mai, juni      Tidskort for ansatte: Daglig, ukentlig, månedlig, årlig"]
["Skriv inn vanlige timer og overtidstimer for april i tabellen fra celle E35. Neste instruksjon er i celle A44.",{"$nulls":3},"April","Uke 1","Overtid","Uke 2","Overtid  ","Uke 3","Overtid   ","Uke 4","Overtid    ","Uke 5","Overtid     "]
[{"$nulls":4},"Mandag"]
[{"$nulls":4},"Tirsdag"]
[{"$nulls":4},"Onsdag"]
[{"$nulls":4},"Torsdag"]
[{"$nulls":4},"Fredag"]
[{"$nulls":4},"Lørdag"]
[{"$nulls":4},"Søndag"]
[{"$nulls":4},"Totale ukentlige timer",{"$f":"SUM(F36:F42)","v":{"v":0,"d":"0.0"}},{"v":0,"d":"0.0"},{"v":0,"d":"0.0"},{"v":0,"d":"0.0"},{"v":0,"d":"0.0"},{"v":0,"d":"0.0"},{"v":0,"d":"0.0"},{"v":0,"d":"0.0"},{"v":0,"d":"0.0"},{"v":0,"d":"0.0"}]
["Total for vanlige timer i celle F44 og total for overtidstimer for april i celle I44 beregnes automatisk. Neste instruksjon er i celle A46.",{"$nulls":3},{"$f":"TEXT(DATEVALUE(April[[#Headers],[April]]&\" \"&YEAR(TODAY())),\"mmm.\")&\" totalsum: Vanlige timer\"","v":"apr. totalsum: Vanlige timer"},{"$f":"SUM(April[Uke 1],April[Uke 2],April[Uke 3],April[Uke 4],April[Uke 5])","v":{"v":0,"d":"0.0"}},{"$f":"TEXT(DATEVALUE(April[[#Headers],[April]]&\" \"&YEAR(TODAY())),\"mmm.\")&\" totalsum: Overtid\"","v":"apr. totalsum: Overtid"},null,{"$f":"SUM(April[Overtid],April[[Overtid  ]],April[[Overtid   ]],April[[Overtid    ]],April[[Overtid     ]])","v":{"v":0,"d":"0.0"}}]
[]
["Skriv inn timer overtid og vanlig for mai i tabellen i celle E46. Neste instruksjon er i celle A55.",{"$nulls":3},"Mai","Uke 1","Overtid","Uke 2","Overtid  ","Uke 3","Overtid   ","Uke 4","Overtid    ","Uke 5","Overtid     "]
[{"$nulls":4},"Mandag"]
[{"$nulls":4},"Tirsdag"]
[{"$nulls":4},"Onsdag"]
[{"$nulls":4},"Torsdag"]
[{"$nulls":4},"Fredag"]
[{"$nulls":4},"Lørdag"]
[{"$nulls":4},"Søndag"]
[{"$nulls":4},"Totale ukentlige timer",{"$f":"SUM(F47:F53)","v":{"v":0,"d":"0.0"}},{"v":0,"d":"0.0"},{"v":0,"d":"0.0"},{"v":0,"d":"0.0"},{"v":0,"d":"0.0"},{"v":0,"d":"0.0"},{"v":0,"d":"0.0"},{"v":0,"d":"0.0"},{"v":0,"d":"0.0"},{"v":0,"d":"0.0"}]
["Total for vanlige timer i celle F55 og total for overtidstimer for mai i celle I55 beregnes automatisk. Neste instruksjon er i celle A57.",{"$nulls":3},{"$f":"TEXT(DATEVALUE(Mai[[#Headers],[Mai]]&\" \"&YEAR(TODAY())),\"mmm.\")&\" totalsum: Vanlige timer\"","v":"mai. totalsum: Vanlige timer"},{"$f":"SUM(Mai[Uke 1],Mai[Uke 2],Mai[Uke 3],Mai[Uke 4],Mai[Uke 5])","v":{"v":0,"d":"0.0"}},{"$f":"TEXT(DATEVALUE(Mai[[#Headers],[Mai]]&\" \"&YEAR(TODAY())),\"mmm.\")&\" totalsum: Overtid\"","v":"mai. totalsum: Overtid"},null,{"$f":"SUM(Mai[Overtid],Mai[[Overtid  ]],Mai[[Overtid   ]],Mai[[Overtid    ]],Mai[[Overtid     ]])","v":{"v":0,"d":"0.0"}}]
[]
["Skriv inn vanlige timer og overtidstimer i juni i tabellen fra celle E57. Neste instruksjon er i celle A66.",{"$nulls":3},"Juni","Uke 1","Overtid","Uke 2","Overtid  ","Uke 3","Overtid   ","Uke 4","Overtid    ","Uke 5","Overtid     "]
[{"$nulls":4},"Mandag"]
[{"$nulls":4},"Tirsdag"]
[{"$nulls":4},"Onsdag"]
[{"$nulls":4},"Torsdag"]
[{"$nulls":4},"Fredag"]
[{"$nulls":4},"Lørdag"]
[{"$nulls":4},"Søndag"]
[{"$nulls":4},"Totale ukentlige timer",{"$f":"SUM(F58:F64)","v":{"v":0,"d":"0.0"}},{"v":0,"d":"0.0"},{"v":0,"d":"0.0"},{"v":0,"d":"0.0"},{"v":0,"d":"0.0"},{"v":0,"d":"0.0"},{"v":0,"d":"0.0"},{"v":0,"d":"0.0"},{"v":0,"d":"0.0"},{"v":0,"d":"0.0"}]
["Total for vanlige timer i celle F66 og total for overtidstimer for juni i celle I66 beregnes automatisk.",{"$nulls":3},{"$f":"TEXT(DATEVALUE(Juni[[#Headers],[Juni]]&\" \"&YEAR(TODAY())),\"mmm.\")&\" totalsum: Vanlige timer\"","v":"jun. totalsum: Vanlige timer"},{"$f":"SUM(Juni[Uke 1],Juni[Uke 2],Juni[Uke 3],Juni[Uke 4],Juni[Uke 5])","v":{"v":0,"d":"0.0"}},{"$f":"TEXT(DATEVALUE(Juni[[#Headers],[Juni]]&\" \"&YEAR(TODAY())),\"mmm.\")&\" totalsum: Overtid\"","v":"jun. totalsum: Overtid"},null,{"$f":"SUM(Juni[Overtid],Juni[[Overtid  ]],Juni[[Overtid   ]],Juni[[Overtid    ]],Juni[[Overtid     ]])","v":{"v":0,"d":"0.0"}}]
["Overskriften for tredje kvartal, juli, august og september, er i E67. ",{"$nulls":3},"Juli, august, september     Tidskort for ansatte: Daglig, ukentlig, månedlig, årlig"]
["Skriv inn timer overtid og vanlig for juli i tabellen i celle E68. Neste instruksjon er i celle A77.",{"$nulls":3},"Juli","Uke 1","Overtid","Uke 2","Overtid ","Uke 3","Overtid  ","Uke 4","Overtid   ","Uke 5","Overtid     "]
[{"$nulls":4},"Mandag"]
[{"$nulls":4},"Tirsdag"]
[{"$nulls":4},"Onsdag"]
[{"$nulls":4},"Torsdag"]
[{"$nulls":4},"Fredag"]
[{"$nulls":4},"Lørdag"]
[{"$nulls":4},"Søndag"]
[{"$nulls":4},"Totale ukentlige timer",{"$f":"SUM(F69:F75)","v":{"v":0,"d":"0.0"}},{"v":0,"d":"0.0"},{"v":0,"d":"0.0"},{"v":0,"d":"0.0"},{"v":0,"d":"0.0"},{"v":0,"d":"0.0"},{"v":0,"d":"0.0"},{"v":0,"d":"0.0"},{"v":0,"d":"0.0"},{"v":0,"d":"0.0"}]
["Total for vanlige timer i celle F77 og total for overtidstimer for juli i celle I77 beregnes automatisk. Neste instruksjon er i celle A79.",{"$nulls":3},{"$f":"TEXT(DATEVALUE(Juli[[#Headers],[Juli]]&\" \"&YEAR(TODAY())),\"mmm.\")&\" totalsum: Vanlige timer\"","v":"jul. totalsum: Vanlige timer"},{"$f":"SUM(Juli[Uke 1],Juli[Uke 2],Juli[Uke 3],Juli[Uke 4],Juli[Uke 5])","v":{"v":0,"d":"0.0"}},{"$f":"TEXT(DATEVALUE(Juli[[#Headers],[Juli]]&\" \"&YEAR(TODAY())),\"mmm.\")&\" totalsum: Overtid\"","v":"jul. totalsum: Overtid"},null,{"$f":"SUM(Juli[Overtid],Juli[[Overtid ]],Juli[[Overtid  ]],Juli[[Overtid   ]],Juli[[Overtid     ]])","v":{"v":0,"d":"0.0"}}]
[]
["Skriv inn vanlige timer og overtidstimer i august i tabellen fra celle E79. Neste instruksjon er i celle A88.",{"$nulls":3},"August","Uke 1","Overtid","Uke 2","Overtid ","Uke 3","Overtid   ","Uke 4","Overtid  ","Uke 5","Overtid    "]
[{"$nulls":4},"Mandag"]
[{"$nulls":4},"Tirsdag"]
[{"$nulls":4},"Onsdag"]
[{"$nulls":4},"Torsdag"]
[{"$nulls":4},"Fredag"]
[{"$nulls":4},"Lørdag"]
[{"$nulls":4},"Søndag"]
[{"$nulls":4},"Totale ukentlige timer",{"$f":"SUBTOTAL(109,August[Uke 1])","v":{"v":0,"d":"0.0"}},{"$f":"SUBTOTAL(109,August[Overtid])","v":{"v":0,"d":"0.0"}},{"$f":"SUBTOTAL(109,August[Uke 2])","v":{"v":0,"d":"0.0"}},{"$f":"SUBTOTAL(109,August[[Overtid ]])","v":{"v":0,"d":"0.0"}},{"$f":"SUBTOTAL(109,August[Uke 3])","v":{"v":0,"d":"0.0"}},{"$f":"SUBTOTAL(109,August[[Overtid   ]])","v":{"v":0,"d":"0.0"}},{"$f":"SUBTOTAL(109,August[Uke 4])","v":{"v":0,"d":"0.0"}},{"$f":"SUBTOTAL(109,August[[Overtid  ]])","v":{"v":0,"d":"0.0"}},{"$f":"SUBTOTAL(109,August[Uke 5])","v":{"v":0,"d":"0.0"}},{"$f":"SUBTOTAL(109,August[[Overtid    ]])","v":{"v":0,"d":"0.0"}}]
["Total for vanlige timer i celle F88 og total for overtidstimer for august i celle I88 beregnes automatisk. Neste instruksjon er i celle A90.",{"$nulls":3},{"$f":"TEXT(DATEVALUE(August[[#Headers],[August]]&\" \"&YEAR(TODAY())),\"mmm.\")&\" totalsum: Vanlige timer\"","v":"aug. totalsum: Vanlige timer"},{"$f":"SUM(August[Uke 1],August[Uke 2],August[Uke 3],August[Uke 4],August[Uke 5])","v":{"v":0,"d":"0.0"}},{"$f":"TEXT(DATEVALUE(August[[#Headers],[August]]&\" \"&YEAR(TODAY())),\"mmm.\")&\" totalsum: Overtid\"","v":"aug. totalsum: Overtid"},null,{"$f":"SUM(August[Overtid],August[[Overtid ]],August[[Overtid   ]],August[[Overtid  ]],August[[Overtid    ]])","v":{"v":0,"d":"0.0"}}]
[]
["Skriv inn vanlige timer og overtidstimer for september i tabellen fra celle E90. Neste instruksjon er i celle A99.",{"$nulls":3},"September","Uke 1","Overtid","Uke 2","Overtid ","Uke 3","Overtid  ","Uke 4","Overtid   ","Uke 5","Overtid    "]
[{"$nulls":4},"Mandag"]
[{"$nulls":4},"Tirsdag"]
[{"$nulls":4},"Onsdag"]
[{"$nulls":4},"Torsdag"]
[{"$nulls":4},"Fredag"]
[{"$nulls":4},"Lørdag"]
[{"$nulls":4},"Søndag"]
[{"$nulls":4},"Totale ukentlige timer",{"$f":"SUBTOTAL(109,September[Uke 1])","v":{"v":0,"d":"0.0"}},{"$f":"SUBTOTAL(109,September[Overtid])","v":{"v":0,"d":"0.0"}},{"$f":"SUBTOTAL(109,September[Uke 2])","v":{"v":0,"d":"0.0"}},{"$f":"SUBTOTAL(109,September[[Overtid ]])","v":{"v":0,"d":"0.0"}},{"$f":"SUBTOTAL(109,September[Uke 3])","v":{"v":0,"d":"0.0"}},{"$f":"SUBTOTAL(109,September[[Overtid  ]])","v":{"v":0,"d":"0.0"}},{"$f":"SUBTOTAL(109,September[Uke 4])","v":{"v":0,"d":"0.0"}},{"$f":"SUBTOTAL(109,September[[Overtid   ]])","v":{"v":0,"d":"0.0"}},{"$f":"SUBTOTAL(109,September[Uke 5])","v":{"v":0,"d":"0.0"}},{"$f":"SUBTOTAL(109,September[[Overtid    ]])","v":{"v":0,"d":"0.0"}}]
["Total for vanlige timer i celle F99 og total for overtidstimer for september i celle I99 beregnes automatisk.",{"$nulls":3},{"$f":"TEXT(DATEVALUE(September[[#Headers],[September]]&\" \"&YEAR(TODAY())),\"mmm.\")&\" totalsum: Vanlige timer\"","v":"sep. totalsum: Vanlige timer"},{"$f":"SUM(September[Uke 1],September[Uke 2],September[Uke 3],September[Uke 4],September[Uke 5])","v":{"v":0,"d":"0.0"}},{"$f":"TEXT(DATEVALUE(September[[#Headers],[September]]&\" \"&YEAR(TODAY())),\"mmm.\")&\" totalsum: Overtid\"","v":"sep. totalsum: Overtid"},null,{"$f":"SUM(September[Overtid],September[[Overtid ]],September[[Overtid  ]],September[[Overtid   ]],September[[Overtid    ]])","v":{"v":0,"d":"0.0"}}]
["Overskriften for fjerde kvartal, oktober, november og desember, er i E100. ",{"$nulls":3},"Oktober, november, desember     Tidskort for ansatte: Daglig, ukentlig, månedlig, årlig"]
["Skriv inn vanlige timer og overtidstimer i oktober i tabellen fra celle E101. Neste instruksjon er i celle A110.",{"$nulls":3},"Oktober","Uke 1","Overtid","Uke 2","Overtid ","Uke 3","Overtid  ","Uke 4","Overtid   ","Uke 5","Overtid    "]
[{"$nulls":4},"Mandag"]
[{"$nulls":4},"Tirsdag"]
[{"$nulls":4},"Onsdag"]
[{"$nulls":4},"Torsdag"]
[{"$nulls":4},"Fredag"]
[{"$nulls":4},"Lørdag"]
[{"$nulls":4},"Søndag"]
[{"$nulls":4},"Totale ukentlige timer",{"$f":"SUBTOTAL(109,Oktober[Uke 1])","v":{"v":0,"d":"0.0"}},{"$f":"SUBTOTAL(109,Oktober[Overtid])","v":{"v":0,"d":"0.0"}},{"$f":"SUBTOTAL(109,Oktober[Uke 2])","v":{"v":0,"d":"0.0"}},{"$f":"SUBTOTAL(109,Oktober[[Overtid ]])","v":{"v":0,"d":"0.0"}},{"$f":"SUBTOTAL(109,Oktober[Uke 3])","v":{"v":0,"d":"0.0"}},{"$f":"SUBTOTAL(109,Oktober[[Overtid  ]])","v":{"v":0,"d":"0.0"}},{"$f":"SUBTOTAL(109,Oktober[Uke 4])","v":{"v":0,"d":"0.0"}},{"$f":"SUBTOTAL(109,Oktober[[Overtid   ]])","v":{"v":0,"d":"0.0"}},{"$f":"SUBTOTAL(109,Oktober[Uke 5])","v":{"v":0,"d":"0.0"}},{"$f":"SUBTOTAL(109,Oktober[[Overtid    ]])","v":{"v":0,"d":"0.0"}}]
["Total for vanlige timer i celle F110 og total for overtidstimer for oktober i celle l110 beregnes automatisk. Neste instruksjon er i celle A112.",{"$nulls":3},{"$f":"TEXT(DATEVALUE(Oktober[[#Headers],[Oktober]]&\" \"&YEAR(TODAY())),\"mmm.\")&\" totalsum: Vanlige timer\"","v":"okt. totalsum: Vanlige timer"},{"$f":"SUM(Oktober[Uke 1],Oktober[Uke 2],Oktober[Uke 3],Oktober[Uke 4],Oktober[Uke 5])","v":{"v":0,"d":"0.0"}},{"$f":"TEXT(DATEVALUE(Oktober[[#Headers],[Oktober]]&\" \"&YEAR(TODAY())),\"mmm.\")&\" totalsum: Overtid\"","v":"okt. totalsum: Overtid"},null,{"$f":"SUM(Oktober[Overtid],Oktober[[Overtid ]],Oktober[[Overtid  ]],Oktober[[Overtid   ]],Oktober[[Overtid    ]])","v":{"v":0,"d":"0.0"}}]
[]
["Skriv inn vanlige timer og overtidstimer for november i tabellen fra celle E112. Neste instruksjon er i celle A121.",{"$nulls":3},"November","Uke 1","Overtid","Uke 2","Overtid ","Uke 3","Overtid  ","Uke 4","Overtid    ","Uke 5","Overtid     "]
[{"$nulls":4},"Mandag"]
[{"$nulls":4},"Tirsdag"]
[{"$nulls":4},"Onsdag"]
[{"$nulls":4},"Torsdag"]
[{"$nulls":4},"Fredag"]
[{"$nulls":4},"Lørdag"]
[{"$nulls":4},"Søndag"]
[{"$nulls":4},"Totale ukentlige timer",{"$f":"SUBTOTAL(109,November[Uke 1])","v":{"v":0,"d":"0.0"}},{"$f":"SUBTOTAL(109,November[Overtid])","v":{"v":0,"d":"0.0"}},{"$f":"SUBTOTAL(109,November[Uke 2])","v":{"v":0,"d":"0.0"}},{"$f":"SUBTOTAL(109,November[[Overtid ]])","v":{"v":0,"d":"0.0"}},{"$f":"SUBTOTAL(109,November[Uke 3])","v":{"v":0,"d":"0.0"}},{"$f":"SUBTOTAL(109,November[[Overtid  ]])","v":{"v":0,"d":"0.0"}},{"$f":"SUBTOTAL(109,November[Uke 4])","v":{"v":0,"d":"0.0"}},{"$f":"SUBTOTAL(109,November[[Overtid    ]])","v":{"v":0,"d":"0.0"}},{"$f":"SUBTOTAL(109,November[Uke 5])","v":{"v":0,"d":"0.0"}},{"$f":"SUBTOTAL(109,November[[Overtid     ]])","v":{"v":0,"d":"0.0"}}]
["Total for vanlige timer i celle F121 og total for overtidstimer for november i celle I121 beregnes automatisk. Neste instruksjon er i celle A123.",{"$nulls":3},{"$f":"TEXT(DATEVALUE(November[[#Headers],[November]]&\" \"&YEAR(TODAY())),\"mmm.\")&\" totalsum: Vanlige timer\"","v":"nov. totalsum: Vanlige timer"},{"$f":"SUM(November[Uke 1],November[Uke 2],November[Uke 3],November[Uke 4],November[Uke 5])","v":{"v":0,"d":"0.0"}},{"$f":"TEXT(DATEVALUE(November[[#Headers],[November]]&\" \"&YEAR(TODAY())),\"mmm.\")&\" totalsum: Overtid\"","v":"nov. totalsum: Overtid"},null,{"$f":"SUM(November[Overtid],November[[Overtid ]],November[[Overtid  ]],November[[Overtid    ]],November[[Overtid     ]])","v":{"v":0,"d":"0.0"}}]
[]
["Skriv inn vanlige timer og overtidstimer for desember i tabellen fra celle E123. Neste instruksjon er i celle A132.",{"$nulls":3},"Desember","Uke 1","Overtid","Uke 2","Overtid ","Uke 3","Overtid  ","Uke 4","Overtid   ","Uke 5","Overtid    "]
[{"$nulls":4},"Mandag"]
[{"$nulls":4},"Tirsdag"]
[{"$nulls":4},"Onsdag"]
[{"$nulls":4},"Torsdag"]
[{"$nulls":4},"Fredag"]
[{"$nulls":4},"Lørdag"]
[{"$nulls":4},"Søndag"]
[{"$nulls":4},"Totale ukentlige timer",{"$f":"SUBTOTAL(109,Desember[Uke 1])","v":{"v":0,"d":"0.0"}},{"$f":"SUBTOTAL(109,Desember[Overtid])","v":{"v":0,"d":"0.0"}},{"$f":"SUBTOTAL(109,Desember[Uke 2])","v":{"v":0,"d":"0.0"}},{"$f":"SUBTOTAL(109,Desember[[Overtid ]])","v":{"v":0,"d":"0.0"}},{"$f":"SUBTOTAL(109,Desember[Uke 3])","v":{"v":0,"d":"0.0"}},{"$f":"SUBTOTAL(109,Desember[[Overtid  ]])","v":{"v":0,"d":"0.0"}},{"$f":"SUBTOTAL(109,Desember[Uke 4])","v":{"v":0,"d":"0.0"}},{"$f":"SUBTOTAL(109,Desember[[Overtid   ]])","v":{"v":0,"d":"0.0"}},{"$f":"SUBTOTAL(109,Desember[Uke 5])","v":{"v":0,"d":"0.0"}},{"$f":"SUBTOTAL(109,Desember[[Overtid    ]])","v":{"v":0,"d":"0.0"}}]
["Total for vanlige timer i celle F132 og total for overtidstimer for desember i celle I132 beregnes automatisk.",{"$nulls":3},{"$f":"TEXT(DATEVALUE(Desember[[#Headers],[Desember]]&\" \"&YEAR(TODAY())),\"mmm.\")&\" totalsum: Vanlige timer\"","v":"des. totalsum: Vanlige timer"},{"$f":"SUM(Desember[Uke 1],Desember[Uke 2],Desember[Uke 3],Desember[Uke 4],Desember[Uke 5])","v":{"v":0,"d":"0.0"}},{"$f":"TEXT(DATEVALUE(Desember[[#Headers],[Desember]]&\" \"&YEAR(TODAY())),\"mmm.\")&\" totalsum: Overtid\"","v":"des. totalsum: Overtid"},null,{"$f":"SUM(G124:G130,I124:I130,K124:K130,M124:M130,O124:O130)","v":{"v":0,"d":"0.0"}}]